fUSD/lending_fUSD_20250204
["ID","MTS","AMOUNT","RATE_DAILY","PERIOD"]
[351631845,1738677041664,-500.0,9.072e-05,2]
[351631846,1738677041674,-500.0,9.072e-05,2]
[351631847,1738677041685,-500.0,9.072e-05,2]
[351631848,1738677041695,-500.0,9.072e-05,2]
[351631849,1738677041706,-688.59,9.072e-05,2]
[351631850,1738677041716,-500.0,9.072e-05,2]
[351631851,1738677041726,-500.0,9.072e-05,2]
[351631852,1738677041736,-500.0,9.072e-05,2]
[351631853,1738677041746,-500.0,9.072e-05,2]
[351631854,1738677041756,-500.0,9.072e-05,2]
[351631855,1738677041766,-500.0,9.072e-05,2]
[351631856,1738677041775,-515.80622925,9.072e-05,2]
[351631857,1738677041784,-500.0,9.072e-05,2]
[351631858,1738677041794,-450.01,9.072e-05,2]
[351631859,1738677041813,-500.0,9.072e-05,2]
[351631860,1738677041823,-586.39,9.072e-05,2]
[351631861,1738677041833,-329.59,9.072e-05,2]
[351631862,1738677041843,-217.27,9.072e-05,2]
[351631863,1738677041853,-500.0,9.072e-05,2]
[351631864,1738677041863,-500.0,9.072e-05,2]
[351631865,1738677041872,-500.0,9.072e-05,2]
[351631866,1738677041882,-2108.07,9.072e-05,2]
[351631867,1738677041892,-500.0,9.072e-05,2]
[351631868,1738677041901,-500.0,9.072e-05,2]
[351631869,1738677041910,-500.0,9.072e-05,2]
[351631870,1738677041920,-500.0,9.072e-05,2]
[351631871,1738677041930,-500.0,9.072e-05,2]
[351631872,1738677041940,-500.0,9.072e-05,2]
[351631873,1738677041950,-500.0,9.072e-05,2]
[351631874,1738677041959,-500.0,9.072e-05,2]
[351631875,1738677041969,-500.0,9.072e-05,2]
[351631876,1738677041979,-500.0,9.072e-05,2]
[351631877,1738677041989,-500.0,9.072e-05,2]
[351631878,1738677041999,-500.0,9.072e-05,2]
[351631879,1738677042008,-500.0,9.072e-05,2]
[351631880,1738677042017,-500.0,9.072e-05,2]
[351631881,1738677042026,-500.0,9.072e-05,2]
[351631882,1738677042036,-505.1,9.072e-05,2]
[351631883,1738677042051,-500.0,9.072e-05,2]
[351631884,1738677042061,-500.0,9.072e-05,2]
[351631885,1738677042071,-500.0,9.072e-05,2]
[351631886,1738677042081,-500.0,9.072e-05,2]
[351631887,1738677042091,-500.0,9.072e-05,2]
[351631888,1738677042100,-999.0,9.072e-05,2]
[351631889,1738677042109,-999.0,9.072e-05,2]
[351631890,1738677042119,-999.0,9.072e-05,2]
[351631891,1738677042128,-999.0,9.072e-05,2]
[351631892,1738677042138,-999.0,9.072e-05,2]
[351631893,1738677042148,-999.0,9.072e-05,2]
[351631894,1738677042158,-999.0,9.072e-05,2]
[351631895,1738677042168,-999.0,9.072e-05,2]
[351631896,1738677042178,-999.0,9.072e-05,2]
[351631897,1738677042188,-999.0,9.072e-05,2]
[351631898,1738677042198,-999.0,9.072e-05,2]
[351631899,1738677042208,-999.0,9.072e-05,2]
[351631900,1738677042218,-999.0,9.072e-05,2]
[351631901,1738677042227,-999.0,9.072e-05,2]
[351631902,1738677042237,-828.27049318,9.072e-05,2]
[351631903,1738677042246,-500.0,9.072e-05,2]
[351631904,1738677042255,-500.0,9.072e-05,2]
[351631905,1738677042265,-500.0,9.072e-05,2]
[351631906,1738677042274,-500.0,9.072e-05,2]
[351631907,1738677042283,-500.0,9.072e-05,2]
[351631908,1738677042293,-500.0,9.072e-05,2]
[351631909,1738677042306,-500.0,9.072e-05,2]
[351631910,1738677042315,-505.7,9.072e-05,2]
[351631911,1738677042325,-500.0,9.072e-05,2]
[351631912,1738677042335,-500.0,9.072e-05,2]
[351631913,1738677042344,-500.0,9.072e-05,2]
[351631914,1738677042354,-500.0,9.072e-05,2]
[351631915,1738677042364,-500.0,9.072e-05,2]
[351631916,1738677042374,-500.0,9.072e-05,2]
[351631917,1738677042384,-500.0,9.072e-05,2]
[351631918,1738677042393,-500.0,9.072e-05,2]
[351631919,1738677042403,-500.0,9.072e-05,2]
[351631920,1738677042413,-500.0,9.072e-05,2]
[351631921,1738677042429,-584.59,9.072e-05,2]
[351631922,1738677042438,-500.0,9.072e-05,2]
[351631923,1738677042448,-500.0,9.072e-05,2]
[351631924,1738677042458,-838.0,9.072e-05,2]
[351631925,1738677042468,-307.35023322,9.072e-05,2]
[351631926,1738677042479,-500.0,9.072e-05,2]
[351631927,1738677042488,-500.0,9.072e-05,2]
[351631928,1738677042498,-165.90718677,9.072e-05,2]
[351631929,1738677042507,-500.0,9.072e-05,2]
[351631930,1738677042517,-500.0,9.072e-05,2]
[351631931,1738677042526,-500.0,9.072e-05,2]
[351631932,1738677042536,-500.0,9.072e-05,2]
[351631933,1738677042549,-500.0,9.072e-05,2]
[351631934,1738677042558,-297.35223269,9.072e-05,2]
[351631935,1738677042568,-500.0,9.072e-05,2]
[351631936,1738677042578,-500.0,9.072e-05,2]
[351631937,1738677042587,-500.0,9.072e-05,2]
[351631938,1738677042598,-500.0,9.072e-05,2]
[351631939,1738677042607,-500.0,9.072e-05,2]
[351631940,1738677042617,-500.0,9.072e-05,2]
[351631941,1738677042627,-500.0,9.072e-05,2]
[351631942,1738677042636,-500.0,9.072e-05,2]
[351631943,1738677042646,-500.0,9.073e-05,2]
[351631944,1738677042655,-500.0,9.073e-05,2]
[351631945,1738677042665,-500.0,9.073e-05,2]
[351631946,1738677042674,-500.0,9.073e-05,2]
[351631947,1738677042683,-500.0,9.073e-05,2]
[351631948,1738677042693,-500.0,9.073e-05,2]
[351631949,1738677042702,-500.0,9.073e-05,2]
[351631950,1738677042711,-500.0,9.073e-05,2]
[351631951,1738677042720,-500.0,9.073e-05,2]
[351631952,1738677042730,-244.25,9.073e-05,2]
[351631953,1738677042740,-242.76752722,9.073e-05,2]
[351631954,1738677042749,-500.0,9.073e-05,2]
[351631955,1738677042759,-364.20167701,9.073e-05,2]
[351631956,1738677042768,-500.0,9.073e-05,2]
[351631957,1738677042778,-643.99,9.131e-05,2]
[351631958,1738677042787,-500.0,9.131e-05,2]
[351631959,1738677042800,-500.0,9.131e-05,2]
[351631960,1738677042810,-947.58,9.131e-05,2]
[351631961,1738677042820,-500.74,9.131e-05,2]
[351631962,1738677042830,-640.34,9.131e-05,2]
[351631963,1738677042841,-500.0,9.131e-05,2]
[351631964,1738677042853,-927.86,9.131e-05,2]
[351631965,1738677042862,-1313.32,9.131e-05,2]
[351631966,1738677042872,-563.12,9.131e-05,2]
[351631967,1738677042883,-773.05,9.131e-05,2]
[351631968,1738677042894,-1018.66,9.131e-05,2]
[351631969,1738677042904,-500.0,9.131e-05,2]
[351631970,1738677042915,-500.0,9.131e-05,2]
[351631971,1738677042926,-500.0,9.131e-05,2]
[351631972,1738677042937,-500.0,9.132e-05,2]
[351631973,1738677042948,-500.0,9.132e-05,2]
[351631974,1738677042958,-500.0,9.132e-05,2]
[351631975,1738677042968,-500.0,9.132e-05,2]
[351631976,1738677042979,-500.0,9.132e-05,2]
[351631977,1738677042989,-500.0,9.132e-05,2]
[351631978,1738677042998,-500.0,9.132e-05,2]
[351631979,1738677043010,-500.0,9.132e-05,2]
[351631980,1738677043020,-500.0,9.132e-05,2]
[351631981,1738677043030,-500.0,9.132e-05,2]
[351631982,1738677043041,-500.0,9.132e-05,2]
[351631983,1738677043058,-500.0,9.132e-05,2]
[351631985,1738677043068,-500.0,9.132e-05,2]
[351631986,1738677043078,-500.0,9.132e-05,2]
[351631987,1738677043088,-574.14777484,9.132e-05,2]
[351631988,1738677043097,-500.0,9.132e-05,2]
[351631989,1738677043107,-500.0,9.132e-05,2]
[351631990,1738677043117,-298.375061,9.132e-05,2]
[351631992,1738677043126,-500.0,9.132e-05,2]
[351631995,1738677043136,-500.0,9.132e-05,2]
[351631997,1738677043145,-497.87865478,9.132e-05,2]
[351631999,1738677043155,-500.0,9.132e-05,2]
[351632001,1738677043165,-500.0,9.132e-05,2]
[351632003,1738677043174,-500.0,9.132e-05,2]
[351632005,1738677043184,-500.0,9.132e-05,2]
[351632007,1738677043194,-287.914156,9.132e-05,2]
[351632009,1738677043204,-754.51,9.132e-05,2]
[351632011,1738677043213,-502.71,9.132e-05,2]
[351632013,1738677043223,-500.0,9.132e-05,2]
[351632015,1738677043233,-743.23,9.132e-05,2]
[351632017,1738677043243,-500.0,9.132e-05,2]
[351632019,1738677043253,-500.0,9.132e-05,2]
[351632021,1738677043262,-500.0,9.132e-05,2]
[351632022,1738677043272,-1018.61,9.132e-05,2]
[351632025,1738677043281,-556.64,9.132e-05,2]
[351632027,1738677043291,-515.4,9.132e-05,2]
[351632029,1738677043303,-548.31,9.208e-05,2]
[351632031,1738677043313,-500.0,9.208e-05,2]
[351632033,1738677043323,-500.0,9.208e-05,2]
[351632036,1738677043332,-500.0,9.208e-05,2]
[351632039,1738677043342,-500.0,9.208e-05,2]
[351632042,1738677043352,-500.0,9.208e-05,2]
[351632045,1738677043361,-500.0,9.208e-05,2]
[351632048,1738677043372,-500.0,9.208e-05,2]
[351632050,1738677043381,-500.0,9.208e-05,2]
[351632052,1738677043391,-500.0,9.208e-05,2]
[351632054,1738677043400,-500.0,9.208e-05,2]
[351632055,1738677043409,-500.0,9.208e-05,2]
[351632056,1738677043419,-500.0,9.208e-05,2]
[351632057,1738677043428,-500.0,9.208e-05,2]
[351632058,1738677043438,-500.0,9.208e-05,2]
[351632059,1738677043447,-500.0,9.208e-05,2]
[351632061,1738677043457,-500.0,9.208e-05,2]
[351632063,1738677043466,-500.0,9.209e-05,2]
[351632065,1738677043476,-500.0,9.209e-05,2]
[351632066,1738677043485,-500.0,9.209e-05,2]
[351632068,1738677043495,-500.0,9.209e-05,2]
[351632069,1738677043504,-500.0,9.209e-05,2]
[351632070,1738677043513,-500.0,9.209e-05,2]
[351632071,1738677043522,-500.0,9.209e-05,2]
[351632072,1738677043532,-500.0,9.209e-05,2]
[351632073,1738677043541,-500.0,9.209e-05,2]
[351632074,1738677043554,-341.16859588,9.209e-05,2]
[351632075,1738677043563,-500.0,9.209e-05,2]
[351632076,1738677043572,-500.0,9.209e-05,2]
[351632077,1738677043582,-500.0,9.209e-05,2]
[351632078,1738677043592,-500.0,9.209e-05,2]
[351632079,1738677043601,-500.0,9.209e-05,2]
[351632080,1738677043611,-500.0,9.209e-05,2]
[351632081,1738677043622,-500.0,9.209e-05,2]
[351632082,1738677043632,-500.0,9.209e-05,2]
[351632083,1738677043642,-313.04,9.209e-05,2]
[351632084,1738677043653,-500.0,9.209e-05,2]
[351632085,1738677043663,-500.0,9.209e-05,2]
[351632086,1738677043672,-500.0,9.209e-05,2]
[351632087,1738677043682,-500.0,9.209e-05,2]
[351632088,1738677043691,-2382.72,9.209e-05,2]
[351632089,1738677043701,-500.0,9.209e-05,2]
[351632090,1738677043711,-500.0,9.209e-05,2]
[351632091,1738677043720,-500.0,9.209e-05,2]
[351632092,1738677043730,-500.0,9.209e-05,2]
[351632093,1738677043740,-397.6,9.209e-05,2]
[351632094,1738677043749,-576.66,9.209e-05,2]
[351632095,1738677043759,-500.0,9.209e-05,2]
[351632096,1738677043770,-500.0,9.209e-05,2]
[351632097,1738677043779,-612.33,9.209e-05,2]
[351632098,1738677043789,-500.0,9.209e-05,2]
[351632099,1738677043803,-500.0,9.209e-05,2]
[351632100,1738677043812,-500.0,9.209e-05,2]
[351632101,1738677043822,-500.0,9.209e-05,2]
[351632102,1738677043833,-500.0,9.209e-05,2]
[351632103,1738677043844,-523.23543489,9.209e-05,2]
[351632104,1738677043855,-500.0,9.209e-05,2]
[351632105,1738677043864,-500.0,9.209e-05,2]
[351632106,1738677043875,-500.0,9.209e-05,2]
[351632107,1738677043886,-500.0,9.209e-05,2]
[351632108,1738677043896,-500.0,9.209e-05,2]
[351632109,1738677043905,-662.23,9.209e-05,2]
[351632110,1738677043916,-500.0,9.209e-05,2]
[351632111,1738677043928,-414.83234122,9.209e-05,2]
[351632112,1738677043939,-500.0,9.209e-05,2]
[351632113,1738677043949,-500.0,9.209e-05,2]
[351632114,1738677043959,-534.07,9.209e-05,2]
[351632115,1738677043968,-500.0,9.209e-05,2]
[351632116,1738677043978,-500.0,9.209e-05,2]
[351632117,1738677043988,-500.0,9.209e-05,2]
[351632118,1738677043998,-500.0,9.209e-05,2]
[351632119,1738677044008,-500.0,9.209e-05,2]
[351632120,1738677044017,-500.0,9.209e-05,2]
[351632121,1738677044027,-688.59,9.209e-05,2]
[351632122,1738677044036,-500.0,9.209e-05,2]
[351632123,1738677044049,-500.0,9.209e-05,2]
[351632124,1738677044059,-500.0,9.209e-05,2]
[351632125,1738677044067,-500.0,9.209e-05,2]
[351632126,1738677044076,-316.00560491,9.209e-05,2]
[351632127,1738677044086,-500.0,9.209e-05,2]
[351632128,1738677044095,-500.0,9.209e-05,2]
[351632129,1738677044105,-500.0,9.209e-05,2]
[351632130,1738677044114,-586.39,9.209e-05,2]
[351632131,1738677044123,-500.0,9.209e-05,2]
[351632132,1738677044132,-500.0,9.209e-05,2]
[351632133,1738677044142,-500.0,9.209e-05,2]
[351632134,1738677044151,-2108.07,9.209e-05,2]
[351632135,1738677044161,-500.0,9.209e-05,2]
[351632136,1738677044170,-500.0,9.209e-05,2]
[351632137,1738677044179,-500.0,9.209e-05,2]
[351632138,1738677044188,-500.0,9.209e-05,2]
[351632139,1738677044197,-500.0,9.209e-05,2]
[351632140,1738677044207,-500.0,9.209e-05,2]
[351632141,1738677044216,-405.22303503,9.209e-05,2]
[351632142,1738677044666,-94.77696497,9.209e-05,2]
[351632143,1738677044676,-500.0,9.209e-05,2]
[351632144,1738677044685,-500.0,9.209e-05,2]
[351632145,1738677044694,-500.0,9.209e-05,2]
[351632146,1738677044703,-395.36303503,9.209e-05,2]
[351632147,1738677044724,-500.0,8.994e-05,2]
[351632148,1738677044733,-104.63696497,9.209e-05,2]
[351632149,1738677044742,-544.55,9.209e-05,2]
[351632150,1738677044752,-505.1,9.209e-05,2]
[351632151,1738677044761,-500.0,9.209e-05,2]
[351632152,1738677044771,-100.59455956,9.209e-05,2]
[351632153,1738677045366,-438.68061457,9.071e-05,2]
[351632154,1738677045379,-61.31938543,9.071e-05,2]
[351632155,1738677045388,-500.0,9.072e-05,2]
[351632156,1738677045396,-500.0,9.072e-05,2]
[351632157,1738677045406,-500.0,9.131e-05,2]
[351632158,1738677045416,-500.0,9.208e-05,2]
[351632159,1738677045426,-399.40544044,9.209e-05,2]
[351632160,1738677045435,-360.97517413,9.209e-05,2]
[351632161,1738677045446,-139.02482587,9.209e-05,2]
[351632162,1738677045456,-354.85257913,9.209e-05,2]
[351632163,1738677045468,-145.14742087,9.209e-05,2]
[351632164,1738677045477,-500.0,9.209e-05,2]
[351632165,1738677045486,-297.31781716,9.209e-05,2]
[351632166,1738677045833,-3342.9371,8.699e-05,2]
[351632167,1738677045843,-500.0,8.995e-05,2]
[351632168,1738677045854,-500.0,9.071e-05,2]
[351632169,1738677045864,-276.6,9.132e-05,2]
[351632170,1738677045873,-202.68218284,9.209e-05,2]
[351632171,1738677045883,-500.0,9.209e-05,2]
[351632172,1738677045892,-500.0,9.209e-05,2]
[351632173,1738677045902,-500.0,9.209e-05,2]
[351632174,1738677045912,-500.0,9.209e-05,2]
[351632175,1738677045924,-500.0,9.209e-05,2]
[351632176,1738677045934,-505.7,9.209e-05,2]
[351632177,1738677045944,-500.0,9.209e-05,2]
[351632178,1738677045955,-500.0,9.209e-05,2]
[351632179,1738677045965,-500.0,9.209e-05,2]
[351632180,1738677045975,-500.0,9.209e-05,2]
[351632182,1738677045985,-500.0,9.209e-05,2]
[351632183,1738677045994,-359.14928553,9.209e-05,2]
[351632200,1738677046301,-1968.91,8.99e-05,2]
[351632202,1738677046312,-500.0,9.071e-05,2]
[351632204,1738677046322,-140.85071447,9.209e-05,2]
[351632205,1738677046333,-500.0,9.209e-05,2]
[351632206,1738677046343,-173.12,9.209e-05,2]
[351632207,1738677046353,-500.0,9.209e-05,2]
[351632208,1738677046363,-500.0,9.209e-05,2]
[351632209,1738677046372,-584.59,9.209e-05,2]
[351632210,1738677046382,-277.45679746,9.209e-05,2]
[351632211,1738677046392,-500.0,9.209e-05,2]
[351632212,1738677046401,-838.0,9.209e-05,2]
[351632213,1738677046411,-500.0,9.209e-05,2]
[351632214,1738677046420,-500.0,9.209e-05,2]
[351632215,1738677046430,-500.0,9.209e-05,2]
[351632216,1738677046441,-500.0,9.209e-05,2]
[351632217,1738677046450,-500.0,9.209e-05,2]
[351632218,1738677046460,-500.0,9.209e-05,2]
[351632219,1738677046470,-264.46,9.209e-05,2]
[351632220,1738677046479,-165.54704703,9.209e-05,2]
[351632221,1738677046561,-334.45295297,9.209e-05,2]
[351632222,1738677046570,-500.0,9.209e-05,2]
[351632223,1738677046580,-500.0,9.209e-05,2]
[351632224,1738677046590,-500.0,9.209e-05,2]
[351632225,1738677046600,-165.54704703,9.209e-05,2]
[351632226,1738677046612,-334.45295297,9.209e-05,2]
[351632227,1738677046622,-500.0,9.21e-05,2]
[351632228,1738677046630,-171.04637873,9.21e-05,2]
[351632229,1738677046640,-500.0,9.21e-05,2]
[351632230,1738677046650,-500.0,9.21e-05,2]
[351632231,1738677046660,-500.0,9.21e-05,2]
[351632232,1738677046670,-500.0,9.21e-05,2]
[351632233,1738677046680,-500.0,9.21e-05,2]
[351632235,1738677046689,-500.0,9.21e-05,2]
[351632236,1738677046698,-500.0,9.21e-05,2]
[351632237,1738677046708,-500.0,9.21e-05,2]
[351632238,1738677046718,-567.3914991,9.21e-05,2]
[351632239,1738677046728,-82.33241544,9.217e-05,2]
[351632240,1738677046739,-417.66758456,9.217e-05,2]
[351632241,1738677046748,-1000.0,9.247e-05,2]
[351632242,1738677046757,-984.63,9.249e-05,2]
[351632243,1738677046767,-643.99,9.268e-05,2]
[351632244,1738677046776,-500.0,9.268e-05,2]
[351632245,1738677046786,-500.0,9.268e-05,2]
[351632246,1738677046795,-947.58,9.268e-05,2]
[351632247,1738677046807,-640.34,9.268e-05,2]
[351632248,1738677046816,-500.0,9.268e-05,2]
[351632249,1738677046826,-927.86,9.268e-05,2]
[351632250,1738677046837,-1313.32,9.268e-05,2]
[351632251,1738677046849,-563.12,9.268e-05,2]
[351632252,1738677046859,-773.05,9.268e-05,2]
[351632253,1738677046869,-1018.66,9.268e-05,2]
[351632254,1738677046879,-500.0,9.268e-05,2]
[351632255,1738677046888,-500.0,9.268e-05,2]
[351632256,1738677046897,-500.0,9.268e-05,2]
[351632257,1738677046907,-500.0,9.268e-05,2]
[351632258,1738677046916,-500.0,9.269e-05,2]
[351632259,1738677046926,-500.0,9.269e-05,2]
[351632260,1738677046935,-500.0,9.269e-05,2]
[351632261,1738677046945,-171.90035543,9.269e-05,2]
[351632262,1738677046955,-500.0,9.269e-05,2]
[351632263,1738677046964,-420.45137847,9.269e-05,2]
[351632264,1738677046974,-500.0,9.269e-05,2]
[351632265,1738677046988,-500.0,9.269e-05,2]
[351632266,1738677046999,-500.0,9.269e-05,2]
[351632267,1738677047013,-298.375061,9.269e-05,2]
[351632268,1738677047025,-500.0,9.269e-05,2]
[351632269,1738677047038,-500.0,9.269e-05,2]
[351632270,1738677047050,-174.50388352,9.269e-05,2]
[351632271,1738677047061,-500.0,9.269e-05,2]
[351632272,1738677047072,-500.0,9.269e-05,2]
[351632273,1738677047085,-500.0,9.269e-05,2]
[351632274,1738677047098,-287.914156,9.269e-05,2]
[351632275,1738677047109,-754.51,9.269e-05,2]
[351632276,1738677047120,-502.71,9.269e-05,2]
[351632277,1738677047132,-500.0,9.269e-05,2]
[351632278,1738677047144,-743.23,9.269e-05,2]
[351632279,1738677047156,-500.0,9.269e-05,2]
[351632280,1738677047168,-500.0,9.269e-05,2]
[351632281,1738677047180,-500.0,9.269e-05,2]
[351632282,1738677047191,-1018.61,9.269e-05,2]
[351632283,1738677047202,-556.64,9.269e-05,2]
[351632284,1738677047214,-515.4,9.269e-05,2]
[351632285,1738677047224,-548.31,9.345e-05,2]
[351632286,1738677047235,-500.0,9.345e-05,2]
[351632287,1738677047247,-500.0,9.345e-05,2]
[351632288,1738677047260,-500.0,9.345e-05,2]
[351632289,1738677047272,-500.0,9.345e-05,2]
[351632290,1738677047283,-500.0,9.345e-05,2]
[351632291,1738677047295,-500.0,9.345e-05,2]
[351632292,1738677047308,-500.0,9.345e-05,2]
[351632293,1738677047319,-500.0,9.345e-05,2]
[351632294,1738677047331,-500.0,9.345e-05,2]
[351632295,1738677047343,-500.0,9.345e-05,2]
[351632296,1738677047355,-500.0,9.345e-05,2]
[351632297,1738677047366,-500.0,9.345e-05,2]
[351632298,1738677047378,-500.0,9.345e-05,2]
[351632299,1738677047389,-500.0,9.345e-05,2]
[351632300,1738677047402,-500.0,9.345e-05,2]
[351632301,1738677047414,-500.0,9.346e-05,2]
[351632302,1738677047427,-371.94546414,9.346e-05,2]
[351632303,1738677047438,-500.0,9.346e-05,2]
[351632304,1738677047449,-500.0,9.346e-05,2]
[351632305,1738677047461,-500.0,9.346e-05,2]
[351632306,1738677047472,-500.0,9.346e-05,2]
[351632307,1738677047483,-500.0,9.346e-05,2]
[351632308,1738677047494,-500.0,9.346e-05,2]
[351632309,1738677047506,-500.0,9.346e-05,2]
[351632310,1738677047517,-500.0,9.346e-05,2]
[351632311,1738677047530,-500.0,9.346e-05,2]
[351632312,1738677047541,-500.0,9.346e-05,2]
[351632313,1738677047553,-500.0,9.346e-05,2]
[351632314,1738677047563,-500.0,9.346e-05,2]
[351632315,1738677047575,-556.13,9.346e-05,2]
[351632316,1738677047585,-314.06,9.346e-05,2]
[351632317,1738677047595,-500.0,9.346e-05,2]
[351632318,1738677047605,-2382.72,9.346e-05,2]
[351632319,1738677047615,-500.0,9.346e-05,2]
[351632320,1738677047626,-500.0,9.346e-05,2]
[351632321,1738677047639,-500.0,9.346e-05,2]
[351632322,1738677047651,-404.73,9.346e-05,2]
[351632323,1738677047662,-155.49,9.346e-05,2]
[351632324,1738677047671,-500.0,9.346e-05,2]
[351632325,1738677047682,-500.0,9.346e-05,2]
[351632326,1738677047692,-500.0,9.346e-05,2]
[351632327,1738677047702,-500.0,9.346e-05,2]
[351632328,1738677047713,-500.0,9.346e-05,2]
[351632329,1738677047724,-530.26,9.346e-05,2]
[351632330,1738677047736,-500.0,9.346e-05,2]
[351632331,1738677047747,-500.0,9.346e-05,2]
[351632332,1738677047758,-500.0,9.346e-05,2]
[351632333,1738677047768,-500.0,9.346e-05,2]
[351632334,1738677047777,-500.0,9.346e-05,2]
[351632335,1738677047787,-500.0,9.346e-05,2]
[351632336,1738677047797,-500.0,9.346e-05,2]
[351632337,1738677047809,-534.07,9.346e-05,2]
[351632338,1738677047819,-500.0,9.346e-05,2]
[351632339,1738677047830,-500.0,9.346e-05,2]
[351632340,1738677047842,-500.0,9.346e-05,2]
[351632341,1738677047855,-500.0,9.346e-05,2]
[351632342,1738677047867,-500.0,9.346e-05,2]
[351632343,1738677047878,-500.0,9.346e-05,2]
[351632344,1738677047889,-500.0,9.346e-05,2]
[351632345,1738677047899,-688.59,9.346e-05,2]
[351632346,1738677047910,-500.0,9.346e-05,2]
[351632347,1738677047921,-1000.0,9.346e-05,2]
[351632348,1738677047931,-500.0,9.346e-05,2]
[351632349,1738677047942,-646.70790273,9.346e-05,2]
[351632350,1738677047952,-525.27,9.346e-05,2]
[351632351,1738677047963,-500.0,9.346e-05,2]
[351632352,1738677047973,-500.0,9.346e-05,2]
[351632353,1738677047984,-438.12265521,9.346e-05,2]
[351632354,1738677047995,-500.0,9.346e-05,2]
[351632355,1738677048005,-586.39,9.346e-05,2]
[351632356,1738677048016,-500.0,9.346e-05,2]
[351632357,1738677048027,-500.0,9.346e-05,2]
[351632358,1738677048037,-500.0,9.346e-05,2]
[351632359,1738677048048,-500.0,9.346e-05,2]
[351632360,1738677048062,-2108.07,9.346e-05,2]
[351632361,1738677048073,-500.0,9.346e-05,2]
[351632362,1738677048084,-500.0,9.346e-05,2]
[351632363,1738677048096,-443.14277438,9.346e-05,2]
[351632368,1738677776145,-1352.38162083,0.00012,30]
[351632369,1738677976913,500.0,9.236e-05,30]
[351632370,1738677977191,386.58,9.373e-05,30]
[351632371,1738677997137,-150.94540192,8.219e-05,2]
[351632384,1738678232535,-576.47308612,8.219e-05,2]
[351632385,1738678232574,-955.21691388,8.219e-05,2]
[351632386,1738678232583,-441.28529833,8.226e-05,2]
[351632387,1738678232868,-58.71470167,8.226e-05,2]
[351632388,1738678232878,-500.0,8.256e-05,2]
[351632389,1738678232887,-300.0,8.273e-05,2]
[351632390,1738678232897,-68.28529533,8.274e-05,2]
[351632391,1738678232909,-344.98470467,8.274e-05,2]
[351632392,1738678232919,-1000.0,8.31e-05,2]
[351632393,1738678232931,-190.66,8.34e-05,2]
[351632394,1738678232941,-46.57532533,8.699e-05,2]
[351632395,1738678232953,-686.69977467,8.699e-05,2]
[351632396,1738678232963,-1397.1313,8.699e-05,2]
[351632397,1738678232973,-984.63,8.7e-05,2]
[351632398,1738678232983,-984.63,8.7e-05,2]
[351632399,1738678232992,-984.63,8.7e-05,2]
[351632400,1738678233002,-984.63,8.7e-05,2]
[351632401,1738678233013,-5035.08545944,8.836e-05,2]
[351632402,1738678233034,-357.75785407,8.836e-05,2]
[351632403,1738678233057,-3156.59999991,8.836e-05,2]
[351632641,1738678238366,-1231.8115,8.836e-05,2]
[351632642,1738678238485,-218.74518658,8.836e-05,2]
[351632643,1738678238495,-299.05973251,8.84e-05,2]
[351632644,1738678238522,-685.57026749,8.84e-05,2]
[351632645,1738678238533,-984.63,8.84e-05,2]
[351632646,1738678238543,-150.0,8.994e-05,2]
[351632647,1738678238552,-500.0,8.995e-05,2]
[351632648,1738678238562,-500.0,8.995e-05,2]
[351632649,1738678238572,-500.0,8.995e-05,2]
[351632650,1738678238582,-500.0,8.995e-05,2]
[351632651,1738678238591,-572.58,8.995e-05,2]
[351632652,1738678238601,-500.0,8.995e-05,2]
[351632653,1738678238611,-500.0,8.995e-05,2]
[351632654,1738678238621,-500.0,8.995e-05,2]
[351632655,1738678238630,-500.0,8.995e-05,2]
[351632656,1738678238639,-500.0,8.995e-05,2]
[351632657,1738678238649,-500.0,8.995e-05,2]